bitfinex/quotes_BTCUSD_20251209
["timestamp","ask_amount","ask_price","bid_price","bid_amount"]
[1765321156143,0.21515873,92955.0,92952.0,0.2429216]
[1765321156296,0.22591662,92955.0,92952.0,0.2429216]
[1765321156492,0.22591662,92955.0,92952.0,0.02775824]
[1765321156692,0.21516043,92954.0,92952.0,0.02775824]
[1765321157432,0.01075789,92955.0,92952.0,0.24292288]
[1765321157634,0.22691593,92955.0,92952.0,0.24292288]
[1765321158036,0.22591593,92955.0,92952.0,0.24292288]
[1765321158243,0.01581,92953.0,92952.0,0.24292288]
[1765321158444,0.01581,92953.0,92948.0,0.0107587]
[1765321158445,0.21520649,92934.0,92921.0,0.01076182]
[1765321158670,0.25259279,92934.0,92910.0,0.0107631]
[1765321158918,0.01076287,92912.0,92909.0,0.01076321]
[1765321159112,0.01076287,92912.0,92909.0,0.00039716]
[1765321159113,0.02739,92910.0,92909.0,0.00039716]
[1765321159461,0.05133,92910.0,92909.0,0.01739716]
[1765321159842,0.05133,92910.0,92909.0,0.23266155]
[1765321160041,0.02739,92910.0,92909.0,0.23266155]
[1765321160669,0.05133,92910.0,92909.0,0.23266155]
[1765321160847,0.02839,92910.0,92909.0,0.23266155]
[1765321161230,0.03039,92910.0,92909.0,0.23266155]
[1765321161437,0.05433,92910.0,92909.0,0.21566155]
[1765321161653,0.05433,92910.0,92909.0,0.01739716]
[1765321163614,0.05433,92910.0,92909.0,0.23266155]
[1765321164216,0.28120125,92910.0,92909.0,0.00039716]
[1765321168487,0.27120495,92910.0,92909.0,0.00039716]
[1765321185835,0.29278017,92910.0,92909.0,0.00039716]
[1765321186127,0.27120495,92910.0,92909.0,0.00039716]
[1765321193036,0.27120495,92910.0,92909.0,0.01039716]
[1765321200298,0.27120495,92910.0,92882.0,0.077011]
[1765321200299,0.31749051,92910.0,92882.0,0.077011]
[1765321200547,0.31749051,92910.0,92861.0,0.5169341]
[1765321200548,0.01076773,92870.0,92863.0,0.01076855]
[1765321200679,0.01076808,92867.0,92864.0,0.02153687]
[1765321200884,0.21536871,92864.0,92863.0,0.00011917]
[1765321201215,0.26676871,92864.0,92863.0,0.00011917]
[1765321202211,0.26838158,92864.0,92863.0,0.00011917]
[1765321202415,0.27138158,92864.0,92863.0,0.00011917]
[1765321202621,0.26838158,92864.0,92863.0,0.00011917]
[1765321202818,0.27038158,92864.0,92863.0,0.00011917]
[1765321203016,0.27338158,92864.0,92863.0,0.00011917]
[1765321203765,0.03326,92864.0,92863.0,0.00011917]
[1765321203913,0.005,92864.0,92863.0,0.00011917]
[1765321204134,0.005,92864.0,92863.0,0.02165627]
[1765321204321,0.005,92864.0,92863.0,0.04286025]
[1765321204704,0.003,92864.0,92863.0,0.04286025]
[1765321204904,0.2260955,92882.0,92878.0,0.01076681]
[1765321205305,0.23846994,92881.0,92878.0,0.01076681]
[1765321205510,0.02314,92881.0,92879.0,0.21533356]
[1765321206300,0.02514,92881.0,92879.0,0.21533356]
[1765321206503,0.02314,92881.0,92879.0,0.21533356]
[1765321206700,0.001,92881.0,92878.0,0.01076681]
[1765321207050,0.001,92881.0,92865.0,0.017]
[1765321207051,0.22613314,92866.0,92865.0,0.017]
[1765321207229,0.21536871,92864.0,92860.0,0.0002]
[1765321207428,0.23286158,92864.0,92860.0,0.0002]
[1765321207632,0.2779268,92864.0,92860.0,0.0002]
[1765321209187,0.2829268,92864.0,92860.0,0.0002]
[1765321210980,0.26135158,92864.0,92860.0,0.0002]
[1765321211132,0.27134788,92864.0,92860.0,0.0002]
[1765321212369,0.26634788,92864.0,92860.0,0.0002]
[1765321212808,0.26734788,92864.0,92860.0,0.0002]
[1765321214099,0.26634788,92864.0,92860.0,0.0002]
[1765321214267,0.26834788,92864.0,92860.0,0.0002]
[1765321214865,0.27034788,92864.0,92860.0,0.0002]
[1765321215293,1.56104788,92864.0,92860.0,0.0002]
[1765321215496,1.56104788,92864.0,92820.0,0.01077354]
[1765321215497,0.21544295,92832.0,92820.0,0.01077354]
[1765321215706,0.21544295,92832.0,92819.0,0.01077365]
[1765321215707,0.26622956,92832.0,92819.0,0.01077365]
[1765321215902,0.26622956,92832.0,92817.0,0.01077388]
[1765321216140,0.26622956,92832.0,92816.0,0.010774]
[1765321216342,0.26622956,92832.0,92811.0,0.2262644]
[1765321216343,0.28780478,92832.0,92813.0,0.01077435]
[1765321216555,0.28780478,92832.0,92814.0,0.01077423]
[1765321216702,0.28780478,92832.0,92816.0,0.010774]
[1765321216908,0.28780478,92832.0,92817.0,0.22625035]
[1765321217295,0.28780478,92832.0,92831.0,0.00697004]
[1765321217425,0.28780478,92832.0,92831.0,0.00797004]
[1765321217627,0.28780478,92832.0,92831.0,0.00497004]
[1765321218160,0.30480478,92832.0,92831.0,0.00497004]
[1765321220210,0.28322956,92832.0,92831.0,0.00497004]
[1765321220963,0.24273956,92832.0,92831.0,0.00497004]
[1765321221365,0.26622956,92832.0,92831.0,0.00497004]
[1765321221590,0.26622956,92832.0,92831.0,0.01497004]
[1765321226120,0.28780478,92832.0,92831.0,0.01497004]
[1765321227212,0.26622956,92832.0,92831.0,0.01497004]
[1765321231858,0.28780478,92832.0,92831.0,0.01497004]
[1765321232433,0.26622956,92832.0,92831.0,0.01497004]
[1765321233739,0.26625956,92832.0,92831.0,0.01497004]
[1765321235342,0.05081661,92832.0,92831.0,0.01497004]
[1765321235514,0.26625956,92832.0,92831.0,0.01497004]
[1765321238140,0.27625586,92832.0,92831.0,0.01497004]
[1765321238489,0.26625956,92832.0,92831.0,0.01497004]
[1765321239826,0.26625956,92832.0,92810.0,0.0002]
[1765321239827,0.21549169,92811.0,92810.0,0.0002]
[1765321240038,0.28204691,92811.0,92810.0,0.0002]
[1765321240330,0.28204691,92811.0,92810.0,0.00080113]
[1765321240331,0.30556691,92811.0,92810.0,0.00080113]
[1765321241029,0.30556691,92811.0,92810.0,0.00180113]
[1765321242243,0.30717978,92811.0,92810.0,0.00180113]
[1765321242409,0.30817978,92811.0,92810.0,0.00180113]
[1765321243754,0.05411287,92811.0,92810.0,0.00180113]
[1765321244095,0.21810456,92811.0,92810.0,0.00180113]
[1765321244427,0.04238287,92811.0,92810.0,0.00180113]
[1765321244835,0.25787456,92811.0,92810.0,0.00180113]
[1765321245652,0.27944978,92811.0,92810.0,0.00180113]
[1765321247617,0.25787456,92811.0,92810.0,0.00180113]
[1765321247814,0.27944978,92811.0,92810.0,0.00180113]
[1765321248615,0.27844978,92811.0,92810.0,0.00180113]
[1765321248816,0.27944978,92811.0,92810.0,0.00080113]
[1765321249015,0.27944978,92811.0,92810.0,0.00180113]
[1765321249622,0.27944978,92811.0,92810.0,0.00080113]
[1765321250073,0.28144978,92811.0,92810.0,0.00080113]
[1765321250225,0.57114978,92811.0,92810.0,0.00080113]
[1765321250774,0.60640282,92811.0,92810.0,0.00080113]
[1765321251295,0.57314978,92811.0,92810.0,0.00080113]
[1765321251948,0.6836574,92811.0,92810.0,0.00080113]
[1765321252137,0.60639418,92811.0,92810.0,0.00080113]
[1765321252855,0.60639418,92811.0,92810.0,0.01080113]
[1765321253605,0.58321085,92811.0,92810.0,0.01080113]
[1765321254017,0.57163193,92811.0,92810.0,0.01080113]
[1765321254174,0.56157086,92811.0,92810.0,0.01080113]
[1765321254368,0.57861086,92811.0,92810.0,0.01080113]
[1765321254909,0.56157086,92811.0,92810.0,0.01080113]
[1765321255052,0.27791456,92811.0,92810.0,0.01080113]
[1765321255493,0.29948978,92811.0,92810.0,0.01080113]
[1765321257232,0.29948978,92811.0,92800.0,0.0004]
[1765321257233,0.52779013,92801.0,92800.0,0.0004]
[1765321257437,1.54431013,92801.0,92800.0,0.0004]
[1765321257668,1.58629013,92801.0,92800.0,0.0004]
[1765321258499,1.58729013,92801.0,92800.0,0.00079447]
[1765321258705,1.58729013,92801.0,92800.0,0.00179447]
[1765321259080,1.66746969,92801.0,92800.0,0.00179447]
[1765321259329,1.66746969,92801.0,92800.0,0.00079447]
[1765321259740,1.66946969,92801.0,92800.0,0.00079447]
[1765321260026,1.66846969,92801.0,92800.0,0.00079447]
[1765321260329,1.69163107,92801.0,92800.0,0.00079447]
[1765321260533,1.66846969,92801.0,92800.0,0.00079447]
[1765321260737,1.66946969,92801.0,92800.0,0.00079447]
[1765321260887,1.66746969,92801.0,92800.0,0.00079447]
[1765321261247,1.67046969,92801.0,92800.0,0.00079447]
[1765321261387,1.66646969,92801.0,92800.0,0.00079447]
[1765321261573,1.67046969,92801.0,92800.0,0.00179447]
[1765321261774,1.67246969,92801.0,92800.0,0.00179447]
[1765321262966,1.67246969,92801.0,92800.0,0.00108079]
[1765321262967,1.69162697,92801.0,92800.0,0.00108079]
[1765321263269,1.67046969,92801.0,92800.0,0.00108079]
[1765321264357,1.69362919,92801.0,92800.0,0.00108079]
[1765321265322,1.70799676,92801.0,92800.0,0.00108079]
[1765321266338,1.6979444,92801.0,92800.0,0.00108079]
[1765321266537,1.70799887,92801.0,92800.0,0.00108079]
[1765321267054,1.6747849,92801.0,92800.0,0.00108079]
[1765321267238,0.69795834,92801.0,92800.0,0.00108079]
[1765321267454,1.70801573,92801.0,92800.0,0.00108079]
[1765321269405,1.70802536,92801.0,92800.0,0.00108079]
[1765321271330,0.70802536,92801.0,92800.0,0.00108079]
[1765321271588,0.52781336,92791.0,92790.0,0.0004]
[1765321271801,1.52783659,92781.0,92770.0,0.0002]
[1765321271966,1.57219659,92781.0,92770.0,0.0002]
[1765321272216,1.59612659,92781.0,92770.0,0.0002]
[1765321272427,1.61932401,92781.0,92770.0,0.0002]
[1765321272546,1.61932401,92781.0,92780.0,0.00077278]
[1765321273153,1.62939166,92781.0,92780.0,0.00077278]
[1765321273600,1.69191465,92781.0,92780.0,1e-08]
[1765321273810,1.7229113,92781.0,92780.0,1e-08]
[1765321274010,1.7229113,92781.0,92780.0,0.00100001]
[1765321274166,1.69391465,92781.0,92780.0,0.00100001]
[1765321274369,1.69391465,92781.0,92780.0,1e-08]
[1765321274568,1.69791465,92781.0,92780.0,0.00100001]
[1765321275013,1.69791465,92781.0,92780.0,1e-08]
[1765321275212,1.7269113,92781.0,92780.0,1e-08]
[1765321275388,1.69591465,92781.0,92780.0,1e-08]
[1765321275934,1.69991465,92781.0,92780.0,0.00100001]
[1765321276091,1.69991465,92781.0,92780.0,0.01100001]
[1765321276295,1.5788039,92771.0,92770.0,0.0002]
[1765321276464,1.63938897,92771.0,92770.0,0.0002]
[1765321276662,1.66331897,92771.0,92770.0,0.0002]
[1765321276942,1.74950218,92771.0,92770.0,0.0002]
[1765321277506,1.83026555,92771.0,92770.0,0.0002]
[1765321277675,1.83126555,92771.0,92770.0,0.0002]
[1765321277873,0.80589935,92771.0,92770.0,0.0002]
[1765321278128,0.69187091,92771.0,92770.0,0.0012]
[1765321278332,0.69487091,92771.0,92770.0,0.0012]
[1765321278533,1.58857091,92771.0,92770.0,0.0012]
[1765321279121,1.33067091,92771.0,92770.0,0.0012]
[1765321279338,0.24690461,92771.0,92770.0,0.0012]
[1765321279538,0.21958461,92771.0,92770.0,0.0012]
[1765321279713,0.27083461,92771.0,92770.0,0.0012]
[1765321280115,1.28244378,92771.0,92769.0,9e-05]
[1765321280314,0.23718307,92761.0,92760.0,0.0004]
[1765321280537,0.28315594,92761.0,92760.0,0.0004]
[1765321280738,0.30708594,92761.0,92760.0,0.0004]
[1765321281418,0.30808594,92761.0,92760.0,0.00451893]
[1765321281822,0.30708594,92761.0,92760.0,0.00051893]
[1765321282242,0.30808594,92761.0,92760.0,0.00051893]
[1765321283152,0.30808594,92761.0,92760.0,0.00151893]
[1765321286061,0.29104594,92761.0,92760.0,0.00151893]
[1765321286843,0.26947072,92761.0,92760.0,0.00151893]
[1765321287262,0.26947072,92761.0,92760.0,0.00209191]
[1765321291340,0.001,92761.0,92760.0,0.21770208]
[1765321291675,0.26709415,92761.0,92760.0,0.00209191]
[1765321292305,0.26709415,92761.0,92760.0,0.00109191]
[1765321292509,0.23720631,92751.0,92740.0,0.0004]
[1765321292758,0.26573631,92751.0,92750.0,0.00051936]
[1765321292927,0.28984631,92751.0,92750.0,0.00051936]
[1765321293801,0.29084631,92751.0,92750.0,0.00351936]
[1765321294452,0.29084631,92751.0,92750.0,0.00451936]
[1765321295012,0.29245918,92751.0,92750.0,0.00451936]
[1765321295215,0.58315918,92751.0,92750.0,0.00451936]
[1765321296113,1.58215918,92751.0,92750.0,0.00051936]
[1765321296500,1.58315918,92751.0,92750.0,0.00151936]
[1765321297472,1.49755918,92751.0,92750.0,0.00151936]
[1765321298159,1.58315918,92751.0,92750.0,0.00151936]
[1765321298376,1.58315918,92751.0,92750.0,0.00180591]
[1765321298678,1.42755918,92751.0,92750.0,0.00180591]
[1765321299261,1.58315918,92751.0,92750.0,0.00180591]
[1765321300027,1.25805918,92751.0,92750.0,0.00180591]
[1765321300227,1.26235918,92751.0,92750.0,0.00180591]
[1765321300681,1.18815918,92751.0,92750.0,0.00180591]
[1765321301294,1.15138431,92751.0,92750.0,0.00180591]
[1765321302009,0.61648431,92751.0,92750.0,0.00180591]
[1765321302234,0.60019918,92751.0,92750.0,0.00180591]
[1765321302529,0.58862026,92751.0,92750.0,0.00180591]
[1765321304077,0.60019918,92751.0,92750.0,0.00180591]
[1765321304538,0.21663109,92751.0,92750.0,0.00180591]
[1765321304734,0.001,92751.0,92750.0,0.21743933]
[1765321304932,0.001,92751.0,92750.0,0.00180591]
[1765321305144,0.001,92751.0,92750.0,0.21743933]
[1765321305482,0.01078097,92756.0,92754.0,0.21562354]
[1765321305683,0.21562316,92755.0,92752.0,0.21562822]
[1765321305953,0.21562425,92754.0,92751.0,0.22640805]
[1765321306096,0.21663109,92751.0,92750.0,0.00551936]
[1765321306294,0.21563109,92751.0,92750.0,0.00051936]
[1765321306650,0.22640809,92753.0,92750.0,0.00051936]
[1765321306837,0.22640809,92753.0,92751.0,0.01]
[1765321307050,0.21562877,92752.0,92751.0,0.01]
[1765321308166,0.22640809,92753.0,92751.0,0.01]
[1765321308364,0.21562877,92752.0,92751.0,0.01]
[1765321308793,0.21562877,92752.0,92751.0,0.013]
[1765321308979,0.01078097,92756.0,92751.0,0.013]
[1765321308980,0.22639474,92759.0,92751.0,0.02378155]
[1765321309184,0.01078085,92757.0,92754.0,0.0107812]
[1765321309532,0.01078085,92757.0,92755.0,0.21562149]
[1765321309724,0.22639474,92759.0,92756.0,0.21561947]
[1765321309924,0.01704,92769.0,92760.0,0.21560998]
[1765321310138,0.21559158,92768.0,92761.0,0.21560754]
[1765321310340,0.01704,92769.0,92758.0,0.01078074]
[1765321310341,0.01078027,92762.0,92758.0,0.01078074]
[1765321310546,0.01078039,92761.0,92758.0,0.01078074]
[1765321310785,0.0107805,92760.0,92755.0,0.01078108]
[1765321310980,0.21562612,92754.0,92752.0,0.00022923]
[1765321311186,0.21562644,92753.0,92752.0,0.00022923]
[1765321311364,0.26826644,92753.0,92752.0,0.00022923]
[1765321311573,0.21562644,92753.0,92752.0,0.00022923]
[1765321312925,0.21562644,92753.0,92752.0,0.00322923]
[1765321313266,0.21561947,92756.0,92752.0,0.22963897]
[1765321313477,0.21561947,92756.0,92753.0,0.21562413]
[1765321313679,0.22640395,92755.0,92752.0,0.22963822]
[1765321314576,0.22640395,92755.0,92752.0,0.22663822]
[1765321314781,0.22640395,92755.0,92752.0,0.22963822]
[1765321315091,0.22640395,92755.0,92752.0,0.22663822]
[1765321315498,0.22640395,92755.0,92752.0,0.22963822]
[1765321315869,0.21562453,92754.0,92752.0,0.22963822]
[1765321316064,0.22640395,92755.0,92752.0,0.01401066]
[1765321316518,0.22640395,92755.0,92752.0,0.22963898]
[1765321316739,0.11515634,92789.0,92752.0,0.22963898]
[1765321316740,0.22639225,92760.0,92756.0,0.01078097]
[1765321316904,0.22639534,92759.0,92756.0,0.22640043]
[1765321317126,0.01078062,92759.0,92756.0,0.01078097]
[1765321317546,0.01078097,92756.0,92752.0,0.01401066]
[1765321317748,0.01078074,92758.0,92754.0,0.22640478]
[1765321317749,0.22640003,92757.0,92754.0,0.22640478]
[1765321318176,0.22640003,92757.0,92756.0,0.002]
[1765321318515,0.22640003,92757.0,92755.0,0.2156215]
[1765321319837,0.21561179,92760.0,92757.0,0.226398]
[1765321320040,0.22638685,92762.0,92757.0,0.22639702]
[1765321320041,0.21561237,92761.0,92757.0,0.22639702]
[1765321320315,0.21561237,92761.0,92758.0,0.21561409]
[1765321320520,0.21561237,92761.0,92756.0,0.002]
[1765321320521,0.21561448,92759.0,92756.0,0.21561933]
[1765321320729,0.21561448,92759.0,92755.0,0.01078108]
[1765321320730,0.21562644,92753.0,92752.0,0.00022923]
[1765321320846,0.23207644,92753.0,92752.0,0.00022923]
[1765321321051,0.25657644,92753.0,92752.0,0.00022923]
[1765321321270,0.26834644,92753.0,92752.0,0.00022923]
[1765321321475,0.26995931,92753.0,92752.0,0.00022923]
[1765321321673,0.29153453,92753.0,92752.0,0.00022923]
[1765321322153,0.29153453,92753.0,92752.0,0.00322923]
[1765321328783,0.22639544,92759.0,92752.0,0.00322923]
[1765321328784,1.0,92774.0,92764.0,0.01078004]
[1765321329019,0.01077899,92773.0,92766.0,0.01077981]
[1765321329241,0.22635926,92773.0,92769.0,0.01077946]
[1765321329442,0.21557846,92774.0,92770.0,0.01077934]
[1765321329603,0.22635734,92774.0,92771.0,0.21558386]
[1765321329807,0.22636645,92770.0,92767.0,0.22637346]
[1765321330010,0.21558932,92769.0,92767.0,0.01077969]
[1765321330230,0.01077934,92770.0,92767.0,0.21559251]
[1765321330575,0.22636341,92772.0,92768.0,0.01077957]
[1765321330755,0.01077911,92772.0,92771.0,0.002]
[1765321331075,0.01077911,92772.0,92770.0,0.21558654]
[1765321331274,0.226359,92773.0,92770.0,0.01077934]
[1765321331484,0.01177888,92774.0,92770.0,0.01077934]
[1765321331639,0.01177888,92774.0,92773.0,0.21557996]
[1765321331640,0.001,92774.0,92773.0,0.21557996]
[1765321332080,0.0107783,92779.0,92777.0,0.21557066]
[1765321332511,0.22633739,92782.0,92779.0,0.21556602]
[1765321332712,0.01077795,92782.0,92780.0,0.21556355]
[1765321332911,0.22633957,92781.0,92778.0,0.22634675]
[1765321333114,0.01077795,92782.0,92778.0,0.22634675]
[1765321333317,0.02254783,92783.0,92780.0,0.2155635]
[1765321333522,0.01177,92783.0,92780.0,0.22634168]
[1765321333722,0.001,92782.0,92781.0,0.21556137]
[1765321333926,0.21555932,92782.0,92780.0,0.00011936]
[1765321334992,0.21555932,92782.0,92780.0,0.21568269]
[1765321335192,0.23810471,92783.0,92780.0,0.21568269]
[1765321335593,0.02254783,92783.0,92781.0,0.21556096]
[1765321335777,0.02254783,92783.0,92780.0,0.22646087]
[1765321336381,0.001,92782.0,92780.0,0.22646087]
[1765321336589,0.02254783,92783.0,92780.0,0.00011936]
[1765321336590,0.21556137,92781.0,92780.0,0.00011936]
[1765321337539,0.21655955,92782.0,92780.0,0.00011936]
[1765321337693,0.23810473,92783.0,92780.0,0.00011936]
[1765321338091,0.21555985,92782.0,92780.0,0.00011936]
[1765321338322,0.02254783,92783.0,92780.0,0.00011936]
[1765321338511,0.01704,92787.0,92784.0,0.01077772]
[1765321338906,0.23258873,92787.0,92784.0,0.01077772]
[1765321339109,0.226313,92792.0,92785.0,0.0107776]
[1765321339293,0.01077725,92788.0,92785.0,0.0107776]
[1765321339488,0.01077725,92788.0,92784.0,0.22633082]
[1765321339906,0.01077725,92788.0,92785.0,0.215552]
[1765321340129,0.21554051,92790.0,92787.0,0.22632455]
[1765321340312,0.21554289,92789.0,92787.0,0.01077737]
[1765321340824,0.001,92788.0,92786.0,0.01077748]
[1765321341030,0.001,92788.0,92785.0,0.22632922]
[1765321341031,0.21654537,92788.0,92785.0,0.22632922]
[1765321341231,0.22732262,92788.0,92785.0,0.22632922]
[1765321341830,0.22632504,92787.0,92784.0,0.22633192]
[1765321342070,0.01077713,92789.0,92786.0,0.22632723]
[1765321342248,0.01077713,92789.0,92787.0,0.21554743]
[1765321342654,0.22631905,92790.0,92787.0,0.21554743]
[1765321343125,0.22631504,92791.0,92788.0,0.22632151]
[1765321343246,0.22631504,92791.0,92788.0,0.22632158]
[1765321343592,0.0107769,92791.0,92788.0,0.01077725]
[1765321344144,0.22631645,92791.0,92788.0,0.22632137]
[1765321344340,0.01077655,92794.0,92789.0,0.22631857]
[1765321344542,0.22630494,92796.0,92792.0,0.21553547]
[1765321344758,0.22630494,92796.0,92791.0,0.0107769]
[1765321344759,0.01077586,92800.0,92797.0,0.01077621]
[1765321344954,0.21551254,92803.0,92797.0,0.01077621]
[1765321344955,0.01077551,92803.0,92800.0,0.01077586]
[1765321345157,0.01077516,92806.0,92802.0,0.01077562]
[1765321345369,0.01077516,92806.0,92802.0,0.22628711]
[1765321345619,0.2262788,92806.0,92802.0,0.22628711]
[1765321345767,0.01077539,92804.0,92798.0,0.01077609]
[1765321345969,0.21549102,92812.0,92798.0,0.01077609]
[1765321345970,0.01077412,92815.0,92799.0,0.01077597]
[1765321346166,0.21550098,92807.0,92800.0,0.01077586]
[1765321346409,0.01077516,92806.0,92801.0,0.22629033]
[1765321346608,0.22628093,92805.0,92801.0,0.22629033]
[1765321346789,0.22628093,92805.0,92802.0,0.01077562]
[1765321346997,0.22628093,92805.0,92803.0,0.21551008]
[1765321347776,0.22627927,92806.0,92803.0,0.21551008]
[1765321347995,0.22627871,92806.0,92803.0,0.22628559]
[1765321348305,0.01077516,92806.0,92804.0,0.21550766]
[1765321348607,0.001,92805.0,92804.0,0.21550766]
[1765321349050,0.001,92805.0,92794.0,0.01077655]
[1765321349051,0.01077597,92799.0,92794.0,0.01077655]
[1765321349212,0.02157522,92804.0,92788.0,0.01077725]
[1765321349213,0.01077679,92792.0,92788.0,0.01077725]
[1765321349411,0.21553819,92791.0,92788.0,0.01077725]
[1765321349634,0.21553819,92791.0,92785.0,0.21554997]
[1765321349635,0.01077713,92789.0,92785.0,0.3014776]
[1765321349926,0.01077702,92790.0,92787.0,0.21554739]
[1765321350123,0.01077702,92790.0,92788.0,0.21554476]
[1765321350281,0.22631492,92792.0,92788.0,0.21554476]
[1765321350282,0.22631492,92792.0,92789.0,0.22631985]
[1765321350476,0.01077667,92793.0,92790.0,0.22631726]
[1765321350793,0.01077667,92793.0,92791.0,0.21553782]
[1765321351804,0.21553814,92791.0,92785.0,0.2907]
[1765321351985,0.0107776,92785.0,92781.0,0.01077806]
[1765321352196,0.2263316,92785.0,92781.0,0.01077806]
[1765321352584,0.2263316,92785.0,92781.0,0.22633883]
[1765321353021,0.2263316,92785.0,92782.0,0.21555901]
[1765321353204,0.2263316,92785.0,92781.0,0.22733883]
[1765321353610,0.2263316,92785.0,92781.0,0.22833883]
[1765321353829,0.2263316,92785.0,92781.0,0.002]
[1765321353830,0.2155581,92783.0,92781.0,0.002]
[1765321354360,0.25642905,92782.0,92781.0,0.002]
[1765321355042,0.21556137,92781.0,92780.0,0.01011936]
[1765321356433,0.21656137,92781.0,92780.0,0.01011936]
[1765321356613,0.21756137,92781.0,92780.0,0.01011936]
[1765321357534,0.25843137,92781.0,92780.0,0.01011936]
[1765321358155,0.23379137,92781.0,92780.0,0.01011936]
[1765321359834,0.21756137,92781.0,92780.0,0.01011936]
[1765321360051,0.002,92781.0,92780.0,0.01011936]
[1765321360253,0.002,92781.0,92780.0,0.22568305]
[1765321360908,0.01077772,92784.0,92782.0,0.21555874]
[1765321361335,0.22632993,92785.0,92782.0,0.21555874]
[1765321361581,0.01077655,92794.0,92787.0,0.01077737]
[1765321361785,0.44337462,92816.0,92792.0,0.21553538]
[1765321361786,0.01077621,92797.0,92792.0,0.21553538]
[1765321361985,0.21552947,92795.0,92792.0,0.21553538]
[1765321362643,0.21552947,92795.0,92787.0,0.01077737]
[1765321362644,0.01077597,92799.0,92794.0,0.01077655]
[1765321362876,0.21552433,92797.0,92794.0,0.01077655]
[1765321363226,0.01077609,92798.0,92795.0,0.21552859]
[1765321363429,0.01077609,92798.0,92796.0,0.21552642]
[1765321363858,0.21550915,92804.0,92801.0,0.21551285]
[1765321364071,0.21551084,92803.0,92801.0,0.01077574]
[1765321364480,0.22628211,92805.0,92802.0,0.21551259]
[1765321364644,0.01077493,92808.0,92804.0,0.01077539]
[1765321364825,0.215504,92806.0,92804.0,0.01077539]
[1765321365179,0.215504,92806.0,92803.0,0.01077551]
[1765321365180,0.001,92804.0,92803.0,0.01077551]
[1765321365384,0.22627916,92806.0,92803.0,0.01077551]
[1765321365534,0.22627916,92806.0,92803.0,0.22628556]
[1765321365735,0.001,92808.0,92803.0,0.01077551]
[1765321365959,0.01077504,92807.0,92804.0,0.22628116]
[1765321366298,0.22627614,92807.0,92804.0,0.01077539]
[1765321366722,0.22627614,92807.0,92804.0,0.22628323]
[1765321367636,0.22627823,92808.0,92805.0,0.22627941]
[1765321367842,0.22626648,92811.0,92806.0,0.2155033]
[1765321367843,0.001,92807.0,92806.0,0.2155033]
[1765321368329,0.002,92807.0,92806.0,0.2155033]
[1765321368529,0.01077481,92809.0,92807.0,0.2154997]
[1765321368692,0.001,92808.0,92807.0,0.2154997]
[1765321368895,0.002,92808.0,92807.0,0.2154997]
[1765321369155,0.001,92808.0,92807.0,0.2154997]
[1765321369297,0.01077481,92809.0,92807.0,0.2154997]
[1765321369493,0.22626919,92810.0,92807.0,0.22627468]
[1765321369695,0.22626919,92810.0,92803.0,0.01077551]
[1765321369696,0.01077307,92824.0,92817.0,0.21547766]
[1765321369904,0.22624145,92822.0,92819.0,0.21547219]
[1765321370124,0.22624145,92822.0,92819.0,0.21547281]
[1765321370299,0.22624145,92822.0,92818.0,0.01077377]
[1765321370300,0.01077342,92821.0,92818.0,0.22624867]
[1765321370623,0.22624323,92821.0,92818.0,0.21547507]
[1765321370822,0.21547135,92820.0,92817.0,0.22625119]
[1765321371183,0.21547363,92819.0,92817.0,0.22625119]
[1765321371388,0.01116999,92821.0,92818.0,0.01077377]
[1765321371606,0.21547312,92819.0,92817.0,0.01077388]
[1765321371834,0.22624492,92820.0,92817.0,0.22625163]
[1765321372042,0.22624492,92820.0,92818.0,0.21547532]
[1765321372418,0.00039657,92821.0,92818.0,0.01077377]
[1765321372619,0.00039657,92821.0,92819.0,0.21547103]
[1765321372821,0.00039657,92821.0,92818.0,0.22624921]
[1765321373147,0.00039657,92821.0,92819.0,0.21547256]
[1765321373543,0.00039657,92821.0,92820.0,0.2154708]
[1765321373971,0.00039657,92821.0,92817.0,0.01077388]
[1765321373972,0.01116999,92821.0,92817.0,0.01077388]
[1765321374140,0.00039657,92821.0,92819.0,0.21547245]
[1765321374548,0.00139657,92821.0,92819.0,0.21547245]
[1765321374955,0.01116999,92821.0,92818.0,0.01077377]
[1765321375163,0.01116999,92821.0,92818.0,0.22624876]
[1765321375341,0.01116999,92821.0,92819.0,0.001]
[1765321375560,0.00039657,92821.0,92819.0,0.21647223]
[1765321376075,0.00039657,92821.0,92819.0,0.21647169]
[1765321376463,0.00039657,92821.0,92819.0,0.21547169]
[1765321376891,0.00039657,92821.0,92815.0,0.01077412]
[1765321376892,0.22625515,92816.0,92811.0,0.01077458]
[1765321377122,0.04079,92820.0,92803.0,0.21551027]
[1765321377123,0.21550131,92807.0,92803.0,0.21550985]
[1765321377407,0.01077481,92809.0,92804.0,0.01704]
[1765321377653,0.21550279,92807.0,92804.0,0.23254736]
[1765321377852,0.22627172,92809.0,92805.0,0.21550533]
[1765321378015,0.01077458,92811.0,92807.0,0.21550037]
[1765321378198,0.01077458,92811.0,92808.0,0.22627343]
[1765321378406,0.01077458,92811.0,92809.0,0.2154961]
[1765321378651,0.21548101,92816.0,92810.0,0.0107747]
[1765321378652,0.22625919,92814.0,92810.0,0.0107747]
[1765321378880,0.22625919,92814.0,92811.0,0.22626465]
[1765321379265,0.01077435,92813.0,92809.0,0.01077481]
[1765321379483,0.21548973,92812.0,92809.0,0.22627073]
[1765321379692,0.21550108,92807.0,92804.0,0.01804]
[1765321379831,0.01619,92806.0,92804.0,0.001]
[1765321380041,0.06397809,92806.0,92780.0,0.01]
[1765321380239,0.21556137,92781.0,92780.0,0.01]
[1765321380556,0.25635137,92781.0,92780.0,0.01]
[1765321381040,0.27792659,92781.0,92780.0,0.01]
[1765321381242,0.23175137,92781.0,92780.0,0.01]
[1765321381452,0.21556137,92781.0,92780.0,0.01011936]
[1765321381859,0.21756137,92781.0,92780.0,0.01011936]
[1765321382504,0.002,92781.0,92780.0,0.01011936]
[1765321382861,0.003,92781.0,92780.0,0.01011936]
[1765321384171,0.002,92781.0,92780.0,0.01011936]
[1765321384559,0.21555905,92782.0,92780.0,0.01011936]
[1765321386233,0.04079,92781.0,92780.0,0.01011936]
[1765321386409,0.06236522,92781.0,92780.0,0.01011936]
[1765321387177,0.02157522,92781.0,92780.0,0.01011936]
[1765321387412,0.06236522,92781.0,92780.0,0.01011936]
[1765321387797,0.06336522,92781.0,92780.0,0.01011936]
[1765321388020,0.06236522,92781.0,92780.0,0.01011936]
[1765321388204,0.06336522,92781.0,92780.0,0.01011936]
[1765321388635,0.04179,92781.0,92780.0,0.01011936]
[1765321388955,0.01719,92781.0,92780.0,0.01011936]
[1765321389288,0.01619,92781.0,92780.0,0.01011936]
[1765321389490,0.04079,92781.0,92780.0,0.01011936]
[1765321389694,0.27792659,92781.0,92780.0,0.01011936]
[1765321390093,0.25635137,92781.0,92780.0,0.01011936]
[1765321391006,0.21556137,92781.0,92780.0,0.01011936]